[Event "Betsys MČR v online bleskovém šachu 2021"]
[Site "Chess.com"]
[Date "2021.04.17"]
[Round "8"]
[White "Tassa15"]
[Black "adasmrazek"]
[Result "0-1"]
[WhiteElo "870"]
[BlackElo "1311"]
[TimeControl "180+1"]
[EndTime "10:18:07 PDT"]
[Termination "Uživatel adasmrazek zvítězil po vzdání soupeře"]

1. d4 {[%clk 0:03:00.9]} 1... Nf6 {[%clk 0:02:58.5]} 2. Bg5 {[%clk 0:02:59.5]}
2... e6 {[%clk 0:02:54.5]} 3. Bxf6 {[%clk 0:02:57.7]} 3... Qxf6 {[%clk
0:02:54.2]} 4. Nf3 {[%clk 0:02:57.6]} 4... Nc6 {[%clk 0:02:53.2]} 5. e3 {[%clk
0:02:57.6]} 5... Be7 {[%clk 0:02:49.8]} 6. c3 {[%clk 0:02:57.3]} 6... O-O {[%clk
0:02:49.7]} 7. Bd3 {[%clk 0:02:56.9]} 7... d5 {[%clk 0:02:49.9]} 8. Qc2 {[%clk
0:02:56.4]} 8... Bd7 {[%clk 0:02:50]} 9. Bxh7+ {[%clk 0:02:55.7]} 9... Kh8
{[%clk 0:02:49.8]} 10. O-O {[%clk 0:02:42.6]} 10... g6 {[%clk 0:02:49]} 11. Bxg6
{[%clk 0:02:41.4]} 11... Qxg6 {[%clk 0:02:48.9]} 12. Qxg6 {[%clk 0:02:36.3]}
12... fxg6 {[%clk 0:02:49.8]} 13. Nh4 {[%clk 0:02:36]} 13... Bxh4 {[%clk
0:02:49.1]} 14. g3 {[%clk 0:02:35]} 14... Bg5 {[%clk 0:02:47.3]} 15. Nd2 {[%clk
0:02:34.5]} 15... Kg7 {[%clk 0:02:47.1]} 16. f4 {[%clk 0:02:34]} 16... Be7
{[%clk 0:02:46.3]} 17. Nf3 {[%clk 0:02:33.5]} 17... Rh8 {[%clk 0:02:44.3]} 18.
Rae1 {[%clk 0:02:30.7]} 18... g5 {[%clk 0:02:39.7]} 19. e4 {[%clk 0:02:27.7]}
19... gxf4 {[%clk 0:02:34.6]} 20. gxf4 {[%clk 0:02:15.2]} 20... Rag8 {[%clk
0:02:28.8]} 21. Rf2 {[%clk 0:02:15.1]} 21... Kf8+ {[%clk 0:02:26.5]} 22. Rg2
{[%clk 0:02:06.2]} 22... Rxg2+ {[%clk 0:02:26.8]} 23. Kxg2 {[%clk 0:02:06]}
23... Rg8+ {[%clk 0:02:27.7]} 24. Kh1 {[%clk 0:02:05.3]} 24... Be8 {[%clk
0:02:23.9]} 25. exd5 {[%clk 0:02:05]} 25... exd5 {[%clk 0:02:22.1]} 26. Ng5
{[%clk 0:02:02.9]} 26... Bxg5 {[%clk 0:02:20.1]} 27. fxg5 {[%clk 0:02:02]} 27...
Rxg5 {[%clk 0:02:21]} 28. Rf1+ {[%clk 0:02:01.9]} 28... Bf7 {[%clk 0:02:21.4]}
29. Rf2 {[%clk 0:01:58.9]} 29... Ne7 {[%clk 0:02:21.7]} 30. h4 {[%clk
0:01:58.6]} 30... Rg4 {[%clk 0:02:20.5]} 31. h5 {[%clk 0:01:51.9]} 31... Ng8
{[%clk 0:02:19.8]} 32. Kh2 {[%clk 0:01:51.3]} 32... Rh4+ {[%clk 0:02:17.7]} 33.
Kg3 {[%clk 0:01:50.6]} 33... Rxh5 {[%clk 0:02:18.6]} 34. Kg4 {[%clk 0:01:50]}
34... Nh6+ {[%clk 0:02:11.8]} 35. Kg3 {[%clk 0:01:48.5]} 35... Rg5+ {[%clk
0:02:10.6]} 36. Kf4 {[%clk 0:01:47.4]} 36... Rg4+ {[%clk 0:02:10.1]} 37. Kf3
{[%clk 0:01:45]} 37... Kg7 {[%clk 0:02:05.4]} 38. Rf1 {[%clk 0:01:41.8]} 38...
Bh5 {[%clk 0:02:04.4]} 39. Kf2 {[%clk 0:01:41.6]} 39... Rf4+ {[%clk 0:02:03.5]}
40. Ke1 {[%clk 0:01:40.7]} 40... Rxf1+ {[%clk 0:02:04.4]} 41. Kxf1 {[%clk
0:01:40.6]} 41... Kf6 {[%clk 0:02:03.9]} 0-1

[Event "Betsys MČR v online bleskovém šachu 2021"]
[Site "Chess.com"]
[Date "2021.04.17"]
[Round "8"]
[White "svobodan"]
[Black "HerjoAnpe"]
[Result "1-0"]
[WhiteElo "1641"]
[BlackElo "1229"]
[TimeControl "180+1"]
[EndTime "10:18:08 PDT"]
[Termination "Uživatel svobodan zvítězil matem"]

1. e4 {[%clk 0:03:00.9]} 1... e6 {[%clk 0:02:58.9]} 2. d4 {[%clk 0:03:00.5]}
2... d5 {[%clk 0:02:58.9]} 3. Nc3 {[%clk 0:02:58.2]} 3... dxe4 {[%clk
0:02:57.7]} 4. Nxe4 {[%clk 0:02:58]} 4... Nc6 {[%clk 0:02:56.4]} 5. Nf3 {[%clk
0:02:57.6]} 5... f5 {[%clk 0:02:50.3]} 6. Ng3 {[%clk 0:02:55.2]} 6... Nf6 {[%clk
0:02:40.8]} 7. c3 {[%clk 0:02:53.1]} 7... g6 {[%clk 0:02:40.8]} 8. Bg5 {[%clk
0:02:50.5]} 8... Bg7 {[%clk 0:02:40.3]} 9. Bc4 {[%clk 0:02:48.6]} 9... Na5
{[%clk 0:02:37.2]} 10. Bb3 {[%clk 0:02:46]} 10... Nxb3 {[%clk 0:02:37.1]} 11.
Qxb3 {[%clk 0:02:45.6]} 11... O-O {[%clk 0:02:32.4]} 12. O-O {[%clk 0:02:43.7]}
12... Kh8 {[%clk 0:02:32.5]} 13. Rad1 {[%clk 0:02:37.8]} 13... Qd5 {[%clk
0:02:29]} 14. Bxf6 {[%clk 0:02:35.6]} 14... Bxf6 {[%clk 0:02:27.5]} 15. Qxd5
{[%clk 0:02:34.8]} 15... exd5 {[%clk 0:02:27.3]} 16. Ne5 {[%clk 0:02:34.4]}
16... c6 {[%clk 0:02:21.6]} 17. Rfe1 {[%clk 0:02:26.5]} 17... Bh4 {[%clk
0:02:10.9]} 18. Rd3 {[%clk 0:02:16.4]} 18... f4 {[%clk 0:02:09.4]} 19. Ne2
{[%clk 0:02:14.8]} 19... Rf5 {[%clk 0:02:03.8]} 20. Rf3 {[%clk 0:02:03.1]} 20...
Bf6 {[%clk 0:01:44.3]} 21. Nxf4 {[%clk 0:01:47.1]} 21... g5 {[%clk 0:01:42]} 22.
Nh5 {[%clk 0:01:41.8]} 22... Rxf3 {[%clk 0:01:28.5]} 23. Nxf3 {[%clk 0:01:41.2]}
23... g4 {[%clk 0:01:24.1]} 24. Re8# {[%clk 0:01:39.9]} 1-0

[Event "Betsys MČR v online bleskovém šachu 2021"]
[Site "Chess.com"]
[Date "2021.04.17"]
[Round "8"]
[White "czlolcz"]
[Black "LightningAttack_2000"]
[Result "1-0"]
[WhiteElo "2167"]
[BlackElo "1899"]
[TimeControl "180+1"]
[EndTime "10:18:27 PDT"]
[Termination "Uživatel czlolcz zvítězil po vzdání soupeře"]

1. d4 {[%clk 0:03:00.9]} 1... Nf6 {[%clk 0:02:59.2]} 2. c4 {[%clk 0:02:58]} 2...
g6 {[%clk 0:02:58.9]} 3. Nc3 {[%clk 0:02:54.5]} 3... Bg7 {[%clk 0:02:58.7]} 4.
e4 {[%clk 0:02:54.2]} 4... d6 {[%clk 0:02:58.5]} 5. Nf3 {[%clk 0:02:53.6]} 5...
O-O {[%clk 0:02:58.7]} 6. h3 {[%clk 0:02:54.5]} 6... c5 {[%clk 0:02:57.6]} 7. d5
{[%clk 0:02:54.5]} 7... e6 {[%clk 0:02:56]} 8. Bd3 {[%clk 0:02:55.1]} 8... exd5
{[%clk 0:02:56.1]} 9. Nxd5 {[%clk 0:02:55.1]} 9... Nxd5 {[%clk 0:02:55.1]} 10.
cxd5 {[%clk 0:02:52.2]} 10... a6 {[%clk 0:02:53.9]} 11. a4 {[%clk 0:02:51]}
11... Nd7 {[%clk 0:02:46.4]} 12. O-O {[%clk 0:02:50.3]} 12... Re8 {[%clk
0:02:45.7]} 13. Bf4 {[%clk 0:02:48.4]} 13... Qc7 {[%clk 0:02:43.4]} 14. Qc2
{[%clk 0:02:44.9]} 14... b6 {[%clk 0:02:40.8]} 15. Rac1 {[%clk 0:02:39.4]} 15...
Rb8 {[%clk 0:02:39.6]} 16. b4 {[%clk 0:02:38.4]} 16... Bb7 {[%clk 0:02:25.5]}
17. Rfe1 {[%clk 0:02:26.6]} 17... Rbc8 {[%clk 0:02:23.1]} 18. Bf1 {[%clk
0:02:12.8]} 18... c4 {[%clk 0:02:20.5]} 19. Qxc4 {[%clk 0:02:04.5]} 19... Qb8
{[%clk 0:02:15.2]} 20. Qd3 {[%clk 0:01:53.7]} 20... Rxc1 {[%clk 0:02:11.6]} 21.
Rxc1 {[%clk 0:01:52.7]} 21... Ne5 {[%clk 0:02:11.6]} 22. Nxe5 {[%clk 0:01:51.9]}
22... Bxe5 {[%clk 0:02:11.6]} 23. Bxe5 {[%clk 0:01:51.9]} 23... Rxe5 {[%clk
0:02:12.1]} 24. f3 {[%clk 0:01:49.6]} 24... Bc8 {[%clk 0:01:57.9]} 25. Qc3
{[%clk 0:01:42.1]} 25... Bd7 {[%clk 0:01:55.5]} 26. Qc7 {[%clk 0:01:36.3]} 26...
Qe8 {[%clk 0:01:54]} 27. Qxd6 {[%clk 0:01:32.3]} 27... f5 {[%clk 0:01:53.9]} 28.
Rc7 {[%clk 0:01:28.3]} 28... Bc8 {[%clk 0:01:50.2]} 29. Qf6 {[%clk 0:01:15]} 1-0

[Event "Betsys MČR v online bleskovém šachu 2021"]
[Site "Chess.com"]
[Date "2021.04.17"]
[Round "8"]
[White "matykov"]
[Black "Kokos3"]
[Result "1-0"]
[WhiteElo "2010"]
[BlackElo "1553"]
[TimeControl "180+1"]
[EndTime "10:18:27 PDT"]
[Termination "Uživatel matykov zvítězil po vzdání soupeře"]

1. e4 {[%clk 0:02:55.6]} 1... e5 {[%clk 0:02:59.6]} 2. Nf3 {[%clk 0:02:54.7]}
2... Nc6 {[%clk 0:02:59.7]} 3. Nc3 {[%clk 0:02:54.5]} 3... Nf6 {[%clk
0:02:57.5]} 4. d4 {[%clk 0:02:54.7]} 4... exd4 {[%clk 0:02:52.2]} 5. Nxd4 {[%clk
0:02:55.6]} 5... Nxd4 {[%clk 0:02:49.1]} 6. Qxd4 {[%clk 0:02:54.8]} 6... d6
{[%clk 0:02:48.1]} 7. Bc4 {[%clk 0:02:53]} 7... Be7 {[%clk 0:02:46.4]} 8. Bg5
{[%clk 0:02:41.7]} 8... Be6 {[%clk 0:02:40.9]} 9. Bxe6 {[%clk 0:02:40.5]} 9...
fxe6 {[%clk 0:02:39.6]} 10. f4 {[%clk 0:02:37.3]} 10... O-O {[%clk 0:02:37.5]}
11. O-O-O {[%clk 0:02:36.9]} 11... d5 {[%clk 0:02:24.8]} 12. exd5 {[%clk
0:02:25.7]} 12... Nxd5 {[%clk 0:02:08.4]} 13. Nxd5 {[%clk 0:02:10.7]} 13... exd5
{[%clk 0:02:02]} 14. Bxe7 {[%clk 0:02:09.6]} 14... Qxe7 {[%clk 0:01:57.7]} 15.
Qxd5+ {[%clk 0:02:09.1]} 15... Kh8 {[%clk 0:01:52.9]} 16. g3 {[%clk 0:02:04.1]}
16... c6 {[%clk 0:01:47.2]} 17. Qf3 {[%clk 0:02:01.9]} 17... Rfe8 {[%clk
0:01:42.4]} 18. Qc3 {[%clk 0:01:52]} 18... Rad8 {[%clk 0:01:28.6]} 19. Rde1
{[%clk 0:01:42.8]} 19... Qc7 {[%clk 0:01:25.6]} 20. Rxe8+ {[%clk 0:01:42.2]}
20... Rxe8 {[%clk 0:01:25.1]} 21. Re1 {[%clk 0:01:42.2]} 21... Rd8 {[%clk
0:01:20.5]} 22. Qe5 {[%clk 0:01:38.3]} 22... Qb6 {[%clk 0:01:16.2]} 23. Qe8+
{[%clk 0:01:36.9]} 1-0

[Event "Betsys MČR v online bleskovém šachu 2021"]
[Site "Chess.com"]
[Date "2021.04.17"]
[Round "8"]
[White "Petroniuss"]
[Black "tomasPardubice"]
[Result "1-0"]
[WhiteElo "2270"]
[BlackElo "2086"]
[TimeControl "180+1"]
[EndTime "10:18:33 PDT"]
[Termination "Uživatel Petroniuss zvítězil po vzdání soupeře"]

1. e4 {[%clk 0:03:00.9]} 1... c5 {[%clk 0:02:59.5]} 2. Nf3 {[%clk 0:02:59.8]}
2... d6 {[%clk 0:02:59.4]} 3. d3 {[%clk 0:02:59.9]} 3... Nf6 {[%clk 0:02:58.5]}
4. Nbd2 {[%clk 0:02:59.9]} 4... g6 {[%clk 0:02:57.5]} 5. g3 {[%clk 0:03:00.5]}
5... Bg7 {[%clk 0:02:57.5]} 6. Bg2 {[%clk 0:03:01.1]} 6... O-O {[%clk
0:02:57.6]} 7. O-O {[%clk 0:03:01.6]} 7... Nc6 {[%clk 0:02:57.8]} 8. Re1 {[%clk
0:03:02.1]} 8... e6 {[%clk 0:02:57.2]} 9. c3 {[%clk 0:03:01.2]} 9... d5 {[%clk
0:02:57.2]} 10. Qc2 {[%clk 0:03:00.7]} 10... b6 {[%clk 0:02:48]} 11. a4 {[%clk
0:03:00]} 11... Bb7 {[%clk 0:02:46.4]} 12. Nf1 {[%clk 0:02:58.2]} 12... Rc8
{[%clk 0:02:45.5]} 13. Bg5 {[%clk 0:02:55.5]} 13... h6 {[%clk 0:02:43.8]} 14.
Bxf6 {[%clk 0:02:55.4]} 14... Bxf6 {[%clk 0:02:41.7]} 15. Rad1 {[%clk
0:02:55.4]} 15... Bg7 {[%clk 0:02:41.2]} 16. Ne3 {[%clk 0:02:53.6]} 16... d4
{[%clk 0:02:39.2]} 17. Nc4 {[%clk 0:02:53.2]} 17... Re8 {[%clk 0:02:33.2]} 18.
e5 {[%clk 0:02:47.6]} 18... Bf8 {[%clk 0:02:26.5]} 19. Qd2 {[%clk 0:02:45.2]}
19... a6 {[%clk 0:02:23.7]} 20. Qf4 {[%clk 0:02:33.4]} 20... g5 {[%clk
0:02:19.9]} 21. Qg4 {[%clk 0:02:20.8]} 21... b5 {[%clk 0:02:18.2]} 22. axb5
{[%clk 0:02:17.6]} 22... axb5 {[%clk 0:02:18]} 23. Nd6 {[%clk 0:02:09.9]} 23...
Bxd6 {[%clk 0:02:02]} 24. exd6 {[%clk 0:02:10.8]} 24... Qxd6 {[%clk 0:01:59.1]}
25. h4 {[%clk 0:02:10.4]} 25... f6 {[%clk 0:01:58.2]} 26. hxg5 {[%clk
0:02:08.1]} 26... hxg5 {[%clk 0:01:56]} 27. Nxg5 {[%clk 0:02:06]} 27... fxg5
{[%clk 0:01:53.6]} 28. Qxg5+ {[%clk 0:02:06.3]} 28... Kh8 {[%clk 0:01:29.2]} 29.
Re4 {[%clk 0:01:57.6]} 29... Re7 {[%clk 0:01:27.9]} 30. Rh4+ {[%clk 0:01:56.7]}
30... Rh7 {[%clk 0:01:19.8]} 31. Rxh7+ {[%clk 0:01:56.6]} 31... Kxh7 {[%clk
0:01:20.2]} 32. Be4+ {[%clk 0:01:57.2]} 32... Kh8 {[%clk 0:01:18.6]} 33. Kg2
{[%clk 0:01:48.5]} 1-0

[Event "Betsys MČR v online bleskovém šachu 2021"]
[Site "Chess.com"]
[Date "2021.04.17"]
[Round "8"]
[White "Hroch-hroch"]
[Black "PavelNo"]
[Result "1-0"]
[WhiteElo "2254"]
[BlackElo "1971"]
[TimeControl "180+1"]
[EndTime "10:18:33 PDT"]
[Termination "Uživatel Hroch-hroch zvítězil po vzdání soupeře"]

1. e4 {[%clk 0:03:00.9]} 1... c5 {[%clk 0:02:58.9]} 2. Nf3 {[%clk 0:02:59.7]}
2... e6 {[%clk 0:02:59]} 3. g3 {[%clk 0:02:57]} 3... Nc6 {[%clk 0:02:58]} 4. Bg2
{[%clk 0:02:55.7]} 4... g6 {[%clk 0:02:58.1]} 5. O-O {[%clk 0:02:53.6]} 5... Bg7
{[%clk 0:02:58]} 6. Re1 {[%clk 0:02:46.7]} 6... d6 {[%clk 0:02:56]} 7. c3 {[%clk
0:02:46.6]} 7... Nge7 {[%clk 0:02:53.7]} 8. d4 {[%clk 0:02:46.6]} 8... cxd4
{[%clk 0:02:51.6]} 9. cxd4 {[%clk 0:02:46.5]} 9... d5 {[%clk 0:02:49.2]} 10. e5
{[%clk 0:02:45.7]} 10... O-O {[%clk 0:02:46.9]} 11. Nc3 {[%clk 0:02:42.4]} 11...
a6 {[%clk 0:02:46]} 12. Bf4 {[%clk 0:02:39.6]} 12... Bd7 {[%clk 0:02:41.9]} 13.
Qd2 {[%clk 0:02:39]} 13... Re8 {[%clk 0:02:40.7]} 14. h4 {[%clk 0:02:29.3]}
14... b5 {[%clk 0:02:37.2]} 15. h5 {[%clk 0:02:27.6]} 15... Rc8 {[%clk
0:02:18.9]} 16. hxg6 {[%clk 0:02:21.3]} 16... hxg6 {[%clk 0:02:18.2]} 17. Bh6
{[%clk 0:02:08]} 17... Nf5 {[%clk 0:02:12.9]} 18. Bxg7 {[%clk 0:02:05.7]} 18...
Kxg7 {[%clk 0:02:12.8]} 19. Qf4 {[%clk 0:02:02.2]} 19... Rh8 {[%clk 0:02:10.2]}
20. Bf1 {[%clk 0:01:52.4]} 20... Qb6 {[%clk 0:02:08.8]} 21. Rad1 {[%clk
0:01:34]} 21... Rh7 {[%clk 0:01:59.9]} 22. g4 {[%clk 0:01:32.5]} 22... Nh4
{[%clk 0:01:48.8]} 23. Nxh4 {[%clk 0:01:30.2]} 23... Rxh4 {[%clk 0:01:44.7]} 24.
Qf6+ {[%clk 0:01:30.1]} 24... Kg8 {[%clk 0:01:42.1]} 25. Qxh4 {[%clk 0:01:29.9]}
25... Nxd4 {[%clk 0:01:42.1]} 26. Rd3 {[%clk 0:01:24]} 26... b4 {[%clk
0:01:36.8]} 27. Rh3 {[%clk 0:01:21.9]} 27... Kf8 {[%clk 0:01:33.7]} 28. Qf6
{[%clk 0:01:21.2]} 1-0

[Event "Betsys MČR v online bleskovém šachu 2021"]
[Site "Chess.com"]
[Date "2021.04.17"]
[Round "8"]
[White "DenisaD2008"]
[Black "JonasFadrny"]
[Result "1-0"]
[WhiteElo "967"]
[BlackElo "745"]
[TimeControl "180+1"]
[EndTime "10:18:41 PDT"]
[Termination "Uživatel DenisaD2008 zvítězil po vzdání soupeře"]

1. e4 {[%clk 0:03:00.9]} 1... e5 {[%clk 0:02:59.6]} 2. Nf3 {[%clk 0:03:01.4]}
2... Nc6 {[%clk 0:02:58.3]} 3. Bc4 {[%clk 0:03:01.6]} 3... h6 {[%clk 0:02:56.4]}
4. Nc3 {[%clk 0:03:01.2]} 4... Nf6 {[%clk 0:02:53.9]} 5. d4 {[%clk 0:02:57.6]}
5... exd4 {[%clk 0:02:51.2]} 6. Nxd4 {[%clk 0:02:57.9]} 6... Nxd4 {[%clk
0:02:50.4]} 7. Qxd4 {[%clk 0:02:57.4]} 7... b6 {[%clk 0:02:49.4]} 8. e5 {[%clk
0:02:54.6]} 8... Bc5 {[%clk 0:02:47.4]} 9. Qf4 {[%clk 0:02:45.3]} 9... O-O
{[%clk 0:02:39.7]} 10. exf6 {[%clk 0:02:43.7]} 10... Qxf6 {[%clk 0:02:37.5]} 11.
Qxf6 {[%clk 0:02:43]} 11... gxf6 {[%clk 0:02:36.2]} 12. O-O {[%clk 0:02:42.3]}
12... Bb7 {[%clk 0:02:31.8]} 13. Be3 {[%clk 0:02:35.2]} 13... Kh8 {[%clk
0:02:25.9]} 14. Bxc5 {[%clk 0:02:32.1]} 14... bxc5 {[%clk 0:02:24.7]} 15. Nd5
{[%clk 0:02:29.2]} 15... Bxd5 {[%clk 0:02:19.8]} 16. Bxd5 {[%clk 0:02:28.4]}
16... c6 {[%clk 0:02:19.9]} 17. Bc4 {[%clk 0:02:26.9]} 17... d5 {[%clk
0:02:17.3]} 18. Be2 {[%clk 0:02:19.7]} 18... Rfe8 {[%clk 0:02:15.7]} 19. Rfe1
{[%clk 0:02:18.5]} 19... Rad8 {[%clk 0:02:13]} 20. Rad1 {[%clk 0:02:17]} 20...
Rd7 {[%clk 0:02:12.3]} 21. c4 {[%clk 0:02:14.6]} 21... Rde7 {[%clk 0:02:10.4]}
22. Kf1 {[%clk 0:01:58.4]} 22... d4 {[%clk 0:02:08.1]} 23. g4 {[%clk 0:01:54.9]}
23... Kg7 {[%clk 0:02:00.7]} 24. f4 {[%clk 0:01:50.1]} 24... f5 {[%clk 0:01:57]}
25. gxf5 {[%clk 0:01:48.9]} 25... Kf6 {[%clk 0:01:56]} 26. Bg4 {[%clk
0:01:43.7]} 26... Rxe1+ {[%clk 0:01:51.8]} 27. Rxe1 {[%clk 0:01:42.9]} 27... Rg8
{[%clk 0:01:50.2]} 28. Bh3 {[%clk 0:01:41.2]} 28... Rb8 {[%clk 0:01:31.1]} 29.
b3 {[%clk 0:01:39.3]} 29... d3 {[%clk 0:01:29.3]} 30. Rd1 {[%clk 0:01:36.6]}
30... Rd8 {[%clk 0:01:28.1]} 31. Ke1 {[%clk 0:01:34.7]} 31... d2+ {[%clk
0:01:25.2]} 32. Rxd2 {[%clk 0:01:33.7]} 32... Rd3 {[%clk 0:01:23.7]} 33. Rxd3
{[%clk 0:01:31.4]} 1-0

[Event "Betsys MČR v online bleskovém šachu 2021"]
[Site "Chess.com"]
[Date "2021.04.17"]
[Round "8"]
[White "xnepom"]
[Black "jonasstach"]
[Result "1-0"]
[WhiteElo "2252"]
[BlackElo "2010"]
[TimeControl "180+1"]
[EndTime "10:18:43 PDT"]
[Termination "Uživatel xnepom zvítězil po vzdání soupeře"]

1. e4 {[%clk 0:03:00.9]} 1... e6 {[%clk 0:03:00.4]} 2. d4 {[%clk 0:02:58.6]}
2... d5 {[%clk 0:03:00.9]} 3. Nd2 {[%clk 0:02:59]} 3... c5 {[%clk 0:03:00.3]} 4.
exd5 {[%clk 0:02:59.2]} 4... exd5 {[%clk 0:03:01.2]} 5. Ngf3 {[%clk 0:02:59.7]}
5... Nf6 {[%clk 0:03:01.5]} 6. Bb5+ {[%clk 0:02:59.8]} 6... Bd7 {[%clk
0:02:59.2]} 7. Qe2+ {[%clk 0:03:00.4]} 7... Qe7 {[%clk 0:02:55.3]} 8. dxc5
{[%clk 0:03:00.6]} 8... Qxe2+ {[%clk 0:02:54.5]} 9. Bxe2 {[%clk 0:03:00.7]} 9...
Bxc5 {[%clk 0:02:53.7]} 10. Nb3 {[%clk 0:03:00.9]} 10... Bb6 {[%clk 0:02:49.1]}
11. O-O {[%clk 0:03:00.3]} 11... O-O {[%clk 0:02:49.1]} 12. Nbd4 {[%clk
0:02:54.4]} 12... Nc6 {[%clk 0:02:43.2]} 13. Be3 {[%clk 0:02:53.8]} 13... Rac8
{[%clk 0:02:38.3]} 14. c3 {[%clk 0:02:52.4]} 14... a6 {[%clk 0:02:31.3]} 15.
Nxc6 {[%clk 0:02:47]} 15... Bxc6 {[%clk 0:02:32.2]} 16. Bxb6 {[%clk 0:02:46.6]}
16... h6 {[%clk 0:02:10.4]} 17. Rfe1 {[%clk 0:02:45.4]} 17... Ba4 {[%clk
0:02:06.7]} 18. Bd3 {[%clk 0:02:36.6]} 18... Rc6 {[%clk 0:02:01.7]} 19. Bd4
{[%clk 0:02:35.8]} 19... Nh5 {[%clk 0:01:59.4]} 20. b3 {[%clk 0:02:24.1]} 20...
Bb5 {[%clk 0:01:59.3]} 21. Bxb5 {[%clk 0:02:24.1]} 21... axb5 {[%clk 0:02:00.2]}
22. g3 {[%clk 0:02:22.3]} 22... g5 {[%clk 0:01:52.7]} 23. Ne5 {[%clk 0:02:18.1]}
23... Ra6 {[%clk 0:01:47.9]} 24. Re2 {[%clk 0:02:04.2]} 24... Rfa8 {[%clk
0:01:47.3]} 25. Nd7 {[%clk 0:01:56.8]} 25... Rd6 {[%clk 0:01:42.6]} 26. Nc5
{[%clk 0:01:53.5]} 26... b6 {[%clk 0:01:40.7]} 27. Nd3 {[%clk 0:01:53.6]} 27...
f5 {[%clk 0:01:35.2]} 28. Nb4 {[%clk 0:01:51.7]} 28... g4 {[%clk 0:01:33.7]} 29.
Rae1 {[%clk 0:01:50.4]} 29... f4 {[%clk 0:01:33.7]} 30. Re8+ {[%clk 0:01:36.4]}
30... Rxe8 {[%clk 0:01:32.5]} 31. Rxe8+ {[%clk 0:01:37.1]} 31... Kf7 {[%clk
0:01:33.1]} 32. Re5 {[%clk 0:01:34.9]} 32... Nf6 {[%clk 0:01:31.2]} 33. Rf5
{[%clk 0:01:35.2]} 33... f3 {[%clk 0:01:29.2]} 34. Rxf6+ {[%clk 0:01:32.9]}
34... Rxf6 {[%clk 0:01:30.1]} 35. Bxf6 {[%clk 0:01:33.2]} 35... Kxf6 {[%clk
0:01:31]} 36. Nxd5+ {[%clk 0:01:33.6]} 36... Ke5 {[%clk 0:01:31.2]} 37. Nxb6
{[%clk 0:01:34.2]} 37... Ke4 {[%clk 0:01:31.3]} 38. c4 {[%clk 0:01:33.3]} 38...
Kd3 {[%clk 0:01:32.2]} 39. c5 {[%clk 0:01:32.3]} 1-0

[Event "Betsys MČR v online bleskovém šachu 2021"]
[Site "Chess.com"]
[Date "2021.04.17"]
[Round "8"]
[White "Molefancier"]
[Black "tkokosek007"]
[Result "0-1"]
[WhiteElo "1062"]
[BlackElo "1386"]
[TimeControl "180+1"]
[EndTime "10:18:46 PDT"]
[Termination "Uživatel tkokosek007 zvítězil matem"]

1. e4 {[%clk 0:03:00.9]} 1... Nf6 {[%clk 0:02:58.7]} 2. Nc3 {[%clk 0:02:57.3]}
2... d5 {[%clk 0:02:57.9]} 3. exd5 {[%clk 0:02:54.5]} 3... Nxd5 {[%clk
0:02:57.7]} 4. d4 {[%clk 0:02:53]} 4... e6 {[%clk 0:02:47.7]} 5. Nf3 {[%clk
0:02:48.6]} 5... b6 {[%clk 0:02:47.3]} 6. a3 {[%clk 0:02:36.8]} 6... Bb7 {[%clk
0:02:47.1]} 7. Bd3 {[%clk 0:02:27.2]} 7... Be7 {[%clk 0:02:46.6]} 8. O-O {[%clk
0:02:25.6]} 8... O-O {[%clk 0:02:43.3]} 9. Ne5 {[%clk 0:02:20.1]} 9... Nd7
{[%clk 0:02:39.9]} 10. f4 {[%clk 0:02:08.4]} 10... c5 {[%clk 0:02:25.2]} 11. Qh5
{[%clk 0:01:48.5]} 11... N7f6 {[%clk 0:02:10.3]} 12. f5 {[%clk 0:01:35.9]} 12...
Nxh5 {[%clk 0:02:08.3]} 13. fxe6 {[%clk 0:01:33.4]} 13... fxe6 {[%clk 0:01:59]}
14. Rxf8+ {[%clk 0:01:29.8]} 14... Qxf8 {[%clk 0:01:52.1]} 15. Bd2 {[%clk
0:01:19.7]} 15... Nhf6 {[%clk 0:01:47]} 16. Rf1 {[%clk 0:01:16]} 16... Nxc3
{[%clk 0:01:44.4]} 17. bxc3 {[%clk 0:01:13]} 17... cxd4 {[%clk 0:01:40.4]} 18.
cxd4 {[%clk 0:01:11.8]} 18... Qd8 {[%clk 0:01:32.1]} 19. Be3 {[%clk 0:01:04]}
19... Qd5 {[%clk 0:01:27.8]} 20. c4 {[%clk 0:00:51.3]} 20... Qxg2# {[%clk
0:01:25.4]} 0-1

[Event "Betsys MČR v online bleskovém šachu 2021"]
[Site "Chess.com"]
[Date "2021.04.17"]
[Round "8"]
[White "Lisak007"]
[Black "Daffac"]
[Result "0-1"]
[WhiteElo "1827"]
[BlackElo "2088"]
[TimeControl "180+1"]
[EndTime "10:18:50 PDT"]
[Termination "Uživatel Daffac zvítězil na čas"]

1. e4 {[%clk 0:03:00.9]} 1... c6 {[%clk 0:02:59.2]} 2. d3 {[%clk 0:02:54.3]}
2... d5 {[%clk 0:02:58.9]} 3. Nd2 {[%clk 0:02:54.5]} 3... e5 {[%clk 0:02:59.3]}
4. g3 {[%clk 0:02:54.7]} 4... Bd6 {[%clk 0:02:59.4]} 5. Bg2 {[%clk 0:02:55]}
5... Nf6 {[%clk 0:02:59.8]} 6. Ne2 {[%clk 0:02:55.2]} 6... O-O {[%clk
0:03:00.1]} 7. O-O {[%clk 0:02:55.6]} 7... Re8 {[%clk 0:03:00.6]} 8. f4 {[%clk
0:02:55.9]} 8... exf4 {[%clk 0:02:50.7]} 9. Nxf4 {[%clk 0:02:54.2]} 9... Bc5+
{[%clk 0:02:45.3]} 10. Kh1 {[%clk 0:02:51.6]} 10... Ng4 {[%clk 0:02:43.8]} 11.
exd5 {[%clk 0:01:44.4]} 11... Ne3 {[%clk 0:02:34.3]} 12. Qh5 {[%clk 0:01:35.4]}
12... Bg4 {[%clk 0:02:25.5]} 13. Qh4 {[%clk 0:01:17.8]} 13... Qxh4 {[%clk
0:02:23.2]} 14. gxh4 {[%clk 0:01:17.2]} 14... Nxf1 {[%clk 0:02:22.8]} 15. Nxf1
{[%clk 0:01:17.1]} 15... Re1 {[%clk 0:02:16.4]} 16. c3 {[%clk 0:01:01.7]} 16...
Bd6 {[%clk 0:02:00.8]} 0-1